[Event "*** Titled Tuesday Blitz"]
[Site "Chess.com"]
[Date "2018.10.02"]
[Round "10"]
[White "hypert"]
[Black "StoreySniper"]
[Result "1-0"]
[WhiteElo "2329"]
[BlackElo "2394"]
[TimeControl "180+2"]
[EndTime "15:13:09 PDT"]
[Termination "hypert won by resignation"]

1. Nf3 {[%clk 0:02:59.3]} 1... g6 {[%clk 0:03:01]} 2. g3 {[%clk 0:03:00.2]} 2...
Bg7 {[%clk 0:03:02.5]} 3. Bg2 {[%clk 0:03:01.8]} 3... d5 {[%clk 0:03:00.5]} 4.
O-O {[%clk 0:03:03]} 4... c5 {[%clk 0:03:01.6]} 5. d4 {[%clk 0:03:02]} 5... cxd4
{[%clk 0:03:02.1]} 6. Nxd4 {[%clk 0:03:03.1]} 6... e6 {[%clk 0:02:56.5]} 7. c4
{[%clk 0:03:00.9]} 7... Nc6 {[%clk 0:02:47.8]} 8. Nxc6 {[%clk 0:03:01.5]} 8...
bxc6 {[%clk 0:02:48.4]} 9. Nc3 {[%clk 0:03:03.1]} 9... Ne7 {[%clk 0:02:44.4]}
10. Qa4 {[%clk 0:03:02.7]} 10... O-O {[%clk 0:02:43.7]} 11. Rd1 {[%clk
0:03:00.7]} 11... Bd7 {[%clk 0:02:44]} 12. Bg5 {[%clk 0:03:01.1]} 12... f6
{[%clk 0:02:38.2]} 13. Be3 {[%clk 0:03:01.9]} 13... e5 {[%clk 0:02:23.7]} 14.
cxd5 {[%clk 0:02:42]} 14... cxd5 {[%clk 0:02:24.6]} 15. Qa3 {[%clk 0:02:42]}
15... d4 {[%clk 0:02:13.7]} 16. Bxa8 {[%clk 0:02:41]} 16... Qxa8 {[%clk
0:02:13.9]} 17. Qxe7 {[%clk 0:02:41.5]} 17... Bh3 {[%clk 0:02:14.7]} 18. f3
{[%clk 0:02:40.4]} 18... Rf7 {[%clk 0:02:01.8]} 19. Qd6 {[%clk 0:02:33.5]} 19...
dxc3 {[%clk 0:01:49.3]} 20. Qd8+ {[%clk 0:02:32.3]} 20... Rf8 {[%clk 0:01:43.4]}
21. Qxa8 {[%clk 0:02:32.8]} 21... Rxa8 {[%clk 0:01:45.3]} 22. bxc3 {[%clk
0:02:32.8]} 22... f5 {[%clk 0:01:37.1]} 23. Rab1 {[%clk 0:02:32.8]} 23... f4
{[%clk 0:01:34.9]} 24. Bf2 {[%clk 0:02:32.1]} 24... fxg3 {[%clk 0:01:28.5]} 25.
Bxg3 {[%clk 0:02:29]} 25... Be6 {[%clk 0:01:18.5]} 26. a4 {[%clk 0:02:22.9]}
26... e4 {[%clk 0:01:16.8]} 27. Rb8+ {[%clk 0:02:20.2]} 27... Rxb8 {[%clk
0:01:16.6]} 28. Bxb8 {[%clk 0:02:22.1]} 28... a6 {[%clk 0:01:07.4]} 29. fxe4
{[%clk 0:02:08.5]} 29... Bb3 {[%clk 0:01:07.6]} 30. Rd8+ {[%clk 0:02:07.9]}
30... Kf7 {[%clk 0:01:07.7]} 31. Rd7+ {[%clk 0:02:02.5]} 31... Kg8 {[%clk
0:01:08.5]} 32. a5 {[%clk 0:01:52.5]} 32... Bc4 {[%clk 0:00:59.9]} 33. e5 {[%clk
0:01:51]} 33... Bf8 {[%clk 0:00:42.5]} 34. Bd6 {[%clk 0:01:50.2]} 34... Bh6
{[%clk 0:00:38.4]} 35. Kf2 {[%clk 0:01:45.2]} 35... Bd2 {[%clk 0:00:30.6]} 36.
Rc7 {[%clk 0:01:40.4]} 36... Be6 {[%clk 0:00:22.1]} 37. Bb4 {[%clk 0:01:37.9]}
37... Bf4 {[%clk 0:00:21.2]} 38. Rc6 {[%clk 0:01:36.4]} 38... Kf7 {[%clk
0:00:19.4]} 39. Bd6 {[%clk 0:01:35.4]} 39... Bxh2 {[%clk 0:00:20]} 40. Rxa6
{[%clk 0:01:35.5]} 40... h5 {[%clk 0:00:20.5]} 41. Ra7+ {[%clk 0:01:36.5]} 41...
Kg8 {[%clk 0:00:20.2]} 42. a6 {[%clk 0:01:33.9]} 42... h4 {[%clk 0:00:20]} 43.
Ra8+ {[%clk 0:01:31.5]} 43... Kh7 {[%clk 0:00:20.2]} 44. Be7 {[%clk 0:01:27.6]}
44... Bg3+ {[%clk 0:00:21.3]} 45. Ke3 {[%clk 0:01:21]} 45... h3 {[%clk
0:00:20.9]} 46. Bf6 {[%clk 0:01:21.6]} 46... Bg8 {[%clk 0:00:20.9]} 47. Ra7+
{[%clk 0:01:21.3]} 47... Kh6 {[%clk 0:00:21.4]} 48. Rd7 {[%clk 0:01:16.7]} 48...
h2 {[%clk 0:00:21.3]} 49. Rd1 {[%clk 0:01:17.6]} 49... Bd5 {[%clk 0:00:21.2]}
50. a7 {[%clk 0:01:15.1]} 50... h1=Q {[%clk 0:00:22.1]} 51. Rxh1+ {[%clk
0:01:15.1]} 51... Bxh1 {[%clk 0:00:24]} 52. e6 {[%clk 0:01:16.1]} 52... Bd6
{[%clk 0:00:17.2]} 53. Be5 {[%clk 0:01:12.9]} 53... Bc5+ {[%clk 0:00:17.2]} 54.
Bd4 {[%clk 0:01:12]} 54... Bxd4+ {[%clk 0:00:17.8]} 55. Kxd4 {[%clk 0:01:12.9]}
55... Kg7 {[%clk 0:00:19.3]} 56. e4 {[%clk 0:01:13.6]} 56... Kf6 {[%clk
0:00:20.1]} 57. a8=Q {[%clk 0:01:13.9]} 1-0

[Event "*** Titled Tuesday Blitz"]
[Site "Chess.com"]
[Date "2018.10.02"]
[Round "10"]
[White "TastyFrenchFries"]
[Black "JonahWillow"]
[Result "1/2-1/2"]
[WhiteElo "2442"]
[BlackElo "2693"]
[TimeControl "180+2"]
[EndTime "15:13:31 PDT"]
[Termination "Game drawn - insufficient material"]

1. Na3 {[%clk 0:03:01.9]} 1... c5 {[%clk 0:03:00.2]} 2. Nh3 {[%clk 0:03:03.8]}
2... d6 {[%clk 0:03:00.5]} 3. g3 {[%clk 0:03:01.5]} 3... g6 {[%clk 0:03:01.8]}
4. c3 {[%clk 0:03:01.6]} 4... Bg7 {[%clk 0:03:03.7]} 5. Bg2 {[%clk 0:02:53.9]}
5... Nf6 {[%clk 0:03:02.7]} 6. O-O {[%clk 0:02:53.5]} 6... O-O {[%clk
0:03:02.4]} 7. f4 {[%clk 0:02:52]} 7... Nc6 {[%clk 0:03:01.9]} 8. Nf2 {[%clk
0:02:50.3]} 8... e5 {[%clk 0:03:00.8]} 9. d3 {[%clk 0:02:47.4]} 9... Re8 {[%clk
0:02:58.3]} 10. Nc4 {[%clk 0:02:45.7]} 10... d5 {[%clk 0:02:45]} 11. Nxe5 {[%clk
0:02:44.6]} 11... Nxe5 {[%clk 0:02:46]} 12. fxe5 {[%clk 0:02:46.5]} 12... Rxe5
{[%clk 0:02:47.6]} 13. Bf4 {[%clk 0:02:42.7]} 13... Re8 {[%clk 0:02:48.4]} 14.
e4 {[%clk 0:02:39.4]} 14... dxe4 {[%clk 0:02:29.2]} 15. dxe4 {[%clk 0:02:41.3]}
15... Be6 {[%clk 0:02:29.4]} 16. Qc2 {[%clk 0:02:33.5]} 16... Qb6 {[%clk
0:02:17.8]} 17. Kh1 {[%clk 0:02:23.8]} 17... Rad8 {[%clk 0:02:16.6]} 18. Be3
{[%clk 0:02:18.9]} 18... Qc7 {[%clk 0:01:53.5]} 19. Bf4 {[%clk 0:02:16.6]} 19...
Qb6 {[%clk 0:01:54.5]} 20. Be3 {[%clk 0:02:16.6]} 20... Qc7 {[%clk 0:01:55.7]}
21. Bf4 {[%clk 0:02:14.6]} 21... Qe7 {[%clk 0:01:56.7]} 22. Rad1 {[%clk
0:02:13]} 22... Nh5 {[%clk 0:01:56]} 23. Be3 {[%clk 0:02:11.7]} 23... Bc4 {[%clk
0:01:54.1]} 24. Rxd8 {[%clk 0:02:04.7]} 24... Rxd8 {[%clk 0:01:55.1]} 25. Rd1
{[%clk 0:02:02.7]} 25... b6 {[%clk 0:01:54.1]} 26. Rxd8+ {[%clk 0:01:59.7]}
26... Qxd8 {[%clk 0:01:56]} 27. b3 {[%clk 0:01:56]} 27... Be6 {[%clk 0:01:55.6]}
28. c4 {[%clk 0:01:55.6]} 28... Bd4 {[%clk 0:01:55.2]} 29. Qd2 {[%clk 0:01:53]}
29... Nf6 {[%clk 0:01:54.6]} 30. Bxd4 {[%clk 0:01:35.1]} 30... Qxd4 {[%clk
0:01:51.2]} 31. Qxd4 {[%clk 0:01:34.1]} 31... cxd4 {[%clk 0:01:53.1]} 32. Kg1
{[%clk 0:01:29.4]} 32... Kf8 {[%clk 0:01:52.4]} 33. Nd3 {[%clk 0:01:26]} 33...
Ke7 {[%clk 0:01:51.6]} 34. Kf1 {[%clk 0:01:25.2]} 34... Nd7 {[%clk 0:01:49.8]}
35. Ke2 {[%clk 0:01:23.2]} 35... Kd6 {[%clk 0:01:47.4]} 36. Kd2 {[%clk
0:01:17.3]} 36... Ne5 {[%clk 0:01:44.6]} 37. Nf4 {[%clk 0:01:14.2]} 37... Bd7
{[%clk 0:01:43.7]} 38. h3 {[%clk 0:01:12.8]} 38... Bc6 {[%clk 0:01:44.2]} 39.
Nd5 {[%clk 0:01:12.2]} 39... Bxd5 {[%clk 0:01:41.6]} 40. exd5 {[%clk 0:01:10.7]}
40... f5 {[%clk 0:01:42.7]} 41. a3 {[%clk 0:01:05.3]} 41... h6 {[%clk 0:01:43]}
42. h4 {[%clk 0:01:04.4]} 42... g5 {[%clk 0:01:39.2]} 43. hxg5 {[%clk
0:01:06.3]} 43... hxg5 {[%clk 0:01:41.1]} 44. Bh3 {[%clk 0:01:04.6]} 44... f4
{[%clk 0:01:42]} 45. gxf4 {[%clk 0:01:03.5]} 45... gxf4 {[%clk 0:01:43.9]} 46.
Be6 {[%clk 0:01:02.6]} 46... f3 {[%clk 0:01:43.1]} 47. Bc8 {[%clk 0:01:01.2]}
47... Kc5 {[%clk 0:01:41.1]} 48. Bh3 {[%clk 0:01:00.2]} 48... a6 {[%clk
0:01:38]} 49. Ke1 {[%clk 0:00:57.7]} 49... a5 {[%clk 0:01:37.6]} 50. Bc8 {[%clk
0:00:48.8]} 50... b5 {[%clk 0:01:34.4]} 51. cxb5 {[%clk 0:00:46.8]} 51... Kxd5
{[%clk 0:01:32.7]} 52. Kf2 {[%clk 0:00:45.8]} 52... d3 {[%clk 0:01:32]} 53. Ke3
{[%clk 0:00:44.5]} 53... Kc5 {[%clk 0:01:33]} 54. a4 {[%clk 0:00:43.6]} 54...
Kb4 {[%clk 0:01:29.2]} 55. b6 {[%clk 0:00:42.6]} 55... f2 {[%clk 0:01:30.3]} 56.
Kxf2 {[%clk 0:00:41.1]} 56... d2 {[%clk 0:01:28.4]} 57. Ke2 {[%clk 0:00:40.5]}
57... Kc3 {[%clk 0:01:29.8]} 58. Bf5 {[%clk 0:00:31]} 58... Nc6 {[%clk
0:01:30.8]} 59. Kd1 {[%clk 0:00:30.4]} 59... Nd8 {[%clk 0:01:30.3]} 60. Be4
{[%clk 0:00:25.7]} 60... Kxb3 {[%clk 0:01:25.6]} 61. b7 {[%clk 0:00:27]} 61...
Nxb7 {[%clk 0:01:22.1]} 62. Bxb7 {[%clk 0:00:28.9]} 62... Kxa4 {[%clk
0:01:17.8]} 63. Bc6+ {[%clk 0:00:28.9]} 63... Kb3 {[%clk 0:01:17.9]} 64. Kxd2
{[%clk 0:00:28.8]} 64... a4 {[%clk 0:01:19.4]} 65. Bd5+ {[%clk 0:00:30.1]} 65...
Kb2 {[%clk 0:01:20.5]} 66. Kd3 {[%clk 0:00:29.6]} 66... a3 {[%clk 0:01:22.4]}
67. Bc4 {[%clk 0:00:30.5]} 67... Kb1 {[%clk 0:01:23.2]} 68. Kc3 {[%clk
0:00:30.6]} 68... a2 {[%clk 0:01:23.3]} 69. Bxa2+ {[%clk 0:00:28.4]} 1/2-1/2

[Event "*** Titled Tuesday Blitz"]
[Site "Chess.com"]
[Date "2018.10.02"]
[Round "10"]
[White "ahmadzada13"]
[Black "robbykevlishvili"]
[Result "1-0"]
[WhiteElo "2658"]
[BlackElo "2680"]
[TimeControl "180+2"]
[EndTime "15:13:32 PDT"]
[Termination "ahmadzada13 won by checkmate"]

1. d4 {[%clk 0:03:01.9]} 1... d5 {[%clk 0:03:00.2]} 2. c4 {[%clk 0:03:01.8]}
2... c6 {[%clk 0:03:00.1]} 3. Nc3 {[%clk 0:03:02.7]} 3... Nf6 {[%clk 0:03:01.1]}
4. Nf3 {[%clk 0:03:02]} 4... e6 {[%clk 0:03:02.1]} 5. Bg5 {[%clk 0:02:54.6]}
5... h6 {[%clk 0:03:00.3]} 6. Bxf6 {[%clk 0:02:43.1]} 6... Qxf6 {[%clk
0:02:58.2]} 7. e3 {[%clk 0:02:45]} 7... Nd7 {[%clk 0:02:59.3]} 8. Bd3 {[%clk
0:02:41.6]} 8... g6 {[%clk 0:03:00]} 9. O-O {[%clk 0:02:41.2]} 9... Bg7 {[%clk
0:03:01.4]} 10. cxd5 {[%clk 0:02:35.5]} 10... exd5 {[%clk 0:03:01.3]} 11. e4
{[%clk 0:02:36.7]} 11... dxe4 {[%clk 0:03:02.4]} 12. Nxe4 {[%clk 0:02:38.1]}
12... Qe7 {[%clk 0:03:03.7]} 13. Re1 {[%clk 0:02:26.3]} 13... O-O {[%clk
0:03:04.2]} 14. Qb3 {[%clk 0:02:24.2]} 14... Nb6 {[%clk 0:02:57]} 15. Rac1
{[%clk 0:02:20.5]} 15... Qd8 {[%clk 0:02:50.6]} 16. Nc5 {[%clk 0:02:19.8]} 16...
Qd5 {[%clk 0:02:34.9]} 17. Qa3 {[%clk 0:01:56.9]} 17... Qd6 {[%clk 0:02:24.2]}
18. Qb3 {[%clk 0:01:53.4]} 18... Qf6 {[%clk 0:02:05.5]} 19. Ne5 {[%clk
0:01:44.4]} 19... Kh7 {[%clk 0:01:33.1]} 20. Re3 {[%clk 0:01:35]} 20... Nd5
{[%clk 0:00:56.5]} 21. Rf3 {[%clk 0:01:32.5]} 21... Qg5 {[%clk 0:00:57.6]} 22.
Re1 {[%clk 0:01:29.3]} 22... Bxe5 {[%clk 0:00:51.8]} 23. Rxe5 {[%clk 0:01:25.1]}
23... Qc1+ {[%clk 0:00:51.1]} 24. Bf1 {[%clk 0:01:25]} 24... b6 {[%clk
0:00:38.2]} 25. Nd3 {[%clk 0:01:16.1]} 25... Qd2 {[%clk 0:00:38.8]} 26. Qc4
{[%clk 0:01:12.7]} 26... Bd7 {[%clk 0:00:33.9]} 27. Qa4 {[%clk 0:01:02.1]} 27...
Be6 {[%clk 0:00:20.3]} 28. Re2 {[%clk 0:00:59.6]} 28... Qg5 {[%clk 0:00:20.5]}
29. Re5 {[%clk 0:00:56.4]} 29... Qd8 {[%clk 0:00:21]} 30. Qxc6 {[%clk 0:00:54]}
30... Rc8 {[%clk 0:00:22.5]} 31. Qa4 {[%clk 0:00:52.7]} 31... a5 {[%clk
0:00:23.1]} 32. Nf4 {[%clk 0:00:44.9]} 32... Nxf4 {[%clk 0:00:23.9]} 33. Rxf4
{[%clk 0:00:46.8]} 33... Rc1 {[%clk 0:00:24.4]} 34. d5 {[%clk 0:00:42.8]} 34...
Bd7 {[%clk 0:00:21.3]} 35. Qb3 {[%clk 0:00:38.5]} 35... Qc7 {[%clk 0:00:17.6]}
36. Ree4 {[%clk 0:00:34.4]} 36... Ra1 {[%clk 0:00:13.7]} 37. d6 {[%clk
0:00:27.3]} 37... Qc1 {[%clk 0:00:08.6]} 38. Rxf7+ {[%clk 0:00:25.4]} 38... Kg8
{[%clk 0:00:09.4]} 39. Rff4+ {[%clk 0:00:09]} 39... Be6 {[%clk 0:00:06.5]} 40.
Qxe6+ {[%clk 0:00:08.6]} 40... Kh7 {[%clk 0:00:07.8]} 41. Qd7+ {[%clk
0:00:06.2]} 41... Kg8 {[%clk 0:00:08.2]} 42. Rxf8+ {[%clk 0:00:06.5]} 42... Kxf8
{[%clk 0:00:09.8]} 43. Qe7+ {[%clk 0:00:07.9]} 43... Kg8 {[%clk 0:00:10.5]} 44.
Qe8+ {[%clk 0:00:08.9]} 44... Kg7 {[%clk 0:00:12.1]} 45. Re7+ {[%clk 0:00:10.1]}
45... Kf6 {[%clk 0:00:13.7]} 46. Qh8+ {[%clk 0:00:11.4]} 46... Kg5 {[%clk
0:00:12.4]} 47. Qe5+ {[%clk 0:00:12.9]} 47... Kh4 {[%clk 0:00:13.1]} 48. Qg3+
{[%clk 0:00:14.1]} 48... Kh5 {[%clk 0:00:14]} 49. Qf3+ {[%clk 0:00:14.4]} 49...
Kh4 {[%clk 0:00:14.5]} 50. g3+ {[%clk 0:00:15.2]} 50... Kg5 {[%clk 0:00:15.7]}
51. Re5# {[%clk 0:00:16.4]} 1-0

[Event "*** Titled Tuesday Blitz"]
[Site "Chess.com"]
[Date "2018.10.02"]
[Round "10"]
[White "farzadbfd"]
[Black "Gabrielian_Artur"]
[Result "0-1"]
[WhiteElo "2537"]
[BlackElo "2683"]
[TimeControl "180+2"]
[EndTime "15:13:43 PDT"]
[Termination "Gabrielian_Artur won by checkmate"]

1. e4 {[%clk 0:02:57.3]} 1... c5 {[%clk 0:03:00.4]} 2. Nc3 {[%clk 0:02:58.3]}
2... d6 {[%clk 0:02:59.5]} 3. g3 {[%clk 0:02:59.5]} 3... Nc6 {[%clk 0:02:59.1]}
4. Bg2 {[%clk 0:03:00.5]} 4... g6 {[%clk 0:03:00.4]} 5. d3 {[%clk 0:03:02.2]}
5... Bg7 {[%clk 0:03:01.6]} 6. Be3 {[%clk 0:03:03.8]} 6... e6 {[%clk 0:03:00.9]}
7. Qd2 {[%clk 0:03:03.3]} 7... Rb8 {[%clk 0:02:58.8]} 8. Nge2 {[%clk 0:03:02.9]}
8... b5 {[%clk 0:02:56.9]} 9. a3 {[%clk 0:03:01.9]} 9... Nge7 {[%clk 0:02:56.9]}
10. Bh6 {[%clk 0:03:01.7]} 10... O-O {[%clk 0:02:49.5]} 11. Bxg7 {[%clk
0:02:57.7]} 11... Kxg7 {[%clk 0:02:50.3]} 12. d4 {[%clk 0:02:59.4]} 12... cxd4
{[%clk 0:02:49.5]} 13. Nxd4 {[%clk 0:03:01.3]} 13... Nxd4 {[%clk 0:02:48.4]} 14.
Qxd4+ {[%clk 0:03:03.2]} 14... e5 {[%clk 0:02:48.9]} 15. Qxa7 {[%clk 0:03:03.6]}
15... Nc6 {[%clk 0:02:48.8]} 16. Qe3 {[%clk 0:03:05]} 16... Nd4 {[%clk
0:02:49.9]} 17. Qd2 {[%clk 0:02:53]} 17... b4 {[%clk 0:02:50.6]} 18. axb4 {[%clk
0:02:53]} 18... Rxb4 {[%clk 0:02:51.6]} 19. b3 {[%clk 0:02:25.9]} 19... Bh3
{[%clk 0:01:56.2]} 20. O-O {[%clk 0:02:25.9]} 20... Bxg2 {[%clk 0:01:56.9]} 21.
Kxg2 {[%clk 0:02:27.8]} 21... Rb8 {[%clk 0:01:26.8]} 22. Ne2 {[%clk 0:02:13.3]}
22... Ne6 {[%clk 0:01:20.5]} 23. Rfd1 {[%clk 0:02:10.9]} 23... Rb6 {[%clk
0:01:21.3]} 24. Ra5 {[%clk 0:02:00.6]} 24... Qc7 {[%clk 0:01:13.1]} 25. Rd5
{[%clk 0:01:13.3]} 25... Rc6 {[%clk 0:01:12.6]} 26. c3 {[%clk 0:01:12]} 26...
Nc5 {[%clk 0:01:12.9]} 27. Qc2 {[%clk 0:01:09.5]} 27... f5 {[%clk 0:01:10.1]}
28. exf5 {[%clk 0:01:10.6]} 28... Rxf5 {[%clk 0:01:06.2]} 29. b4 {[%clk
0:01:10.1]} 29... Ne6 {[%clk 0:01:05.3]} 30. Qd2 {[%clk 0:01:00.3]} 30... Ng5
{[%clk 0:00:56.6]} 31. Qe3 {[%clk 0:00:30.7]} 31... Nf7 {[%clk 0:00:41.7]} 32.
h4 {[%clk 0:00:24.5]} 32... Rc4 {[%clk 0:00:38.4]} 33. Ra1 {[%clk 0:00:25.2]}
33... Qb7 {[%clk 0:00:38.7]} 34. Ra5 {[%clk 0:00:21.2]} 34... h5 {[%clk
0:00:27.5]} 35. Qa7 {[%clk 0:00:21.9]} 35... Qc6 {[%clk 0:00:22]} 36. Qa6 {[%clk
0:00:21.1]} 36... Qc7 {[%clk 0:00:19.6]} 37. Rab5 {[%clk 0:00:21.6]} 37... Rg4
{[%clk 0:00:17.6]} 38. Rb7 {[%clk 0:00:21.2]} 38... Qd8 {[%clk 0:00:18.6]} 39.
Rxd6 {[%clk 0:00:15.3]} 39... Qe8 {[%clk 0:00:14.1]} 40. Rdd7 {[%clk 0:00:12.2]}
40... Re4 {[%clk 0:00:14.1]} 41. Qd3 {[%clk 0:00:11.9]} 41... Rg4 {[%clk
0:00:10.5]} 42. f3 {[%clk 0:00:13.3]} 42... e4 {[%clk 0:00:11.9]} 43. Qd4+
{[%clk 0:00:13.9]} 43... Kg8 {[%clk 0:00:12.9]} 44. fxg4 {[%clk 0:00:15.2]}
44... hxg4 {[%clk 0:00:13.7]} 45. Nf4 {[%clk 0:00:16.7]} 45... Qa8 {[%clk
0:00:14.6]} 46. Qxe4 {[%clk 0:00:16.3]} 46... Qa2+ {[%clk 0:00:15]} 47. Qe2
{[%clk 0:00:17.9]} 47... Qb1 {[%clk 0:00:14]} 48. Qxg4 {[%clk 0:00:19.1]} 48...
Qe4+ {[%clk 0:00:11.8]} 49. Kh3 {[%clk 0:00:20.1]} 49... Qh1# {[%clk 0:00:12.2]}
0-1

[Event "*** Titled Tuesday Blitz"]
[Site "Chess.com"]
[Date "2018.10.02"]
[Round "10"]
[White "GCamachoMartinez"]
[Black "b_6"]
[Result "0-1"]
[WhiteElo "2274"]
[BlackElo "2395"]
[TimeControl "180+2"]
[EndTime "15:13:49 PDT"]
[Termination "b_6 won by resignation"]

1. d4 {[%clk 0:03:01.9]} 1... d5 {[%clk 0:03:00.1]} 2. c4 {[%clk 0:03:02.2]}
2... e6 {[%clk 0:03:00.9]} 3. Nf3 {[%clk 0:03:02.7]} 3... Nf6 {[%clk 0:03:01.9]}
4. Nc3 {[%clk 0:03:02.6]} 4... c5 {[%clk 0:03:01.8]} 5. cxd5 {[%clk 0:03:02.6]}
5... Nxd5 {[%clk 0:03:00.4]} 6. e4 {[%clk 0:03:03.5]} 6... Nxc3 {[%clk
0:03:01.3]} 7. bxc3 {[%clk 0:03:05.4]} 7... cxd4 {[%clk 0:03:03]} 8. cxd4 {[%clk
0:03:07.3]} 8... Bb4+ {[%clk 0:03:04.5]} 9. Bd2 {[%clk 0:03:08.5]} 9... Bxd2+
{[%clk 0:03:06.2]} 10. Qxd2 {[%clk 0:03:10]} 10... O-O {[%clk 0:03:07.6]} 11.
Bc4 {[%clk 0:03:10.7]} 11... Nd7 {[%clk 0:03:07.3]} 12. O-O {[%clk 0:03:11]}
12... b6 {[%clk 0:03:08.5]} 13. Rad1 {[%clk 0:03:10.1]} 13... Bb7 {[%clk
0:03:06.3]} 14. Rfe1 {[%clk 0:03:11.1]} 14... Rc8 {[%clk 0:03:03.8]} 15. Bb3
{[%clk 0:03:11.3]} 15... Qf6 {[%clk 0:02:37.4]} 16. h4 {[%clk 0:02:56.7]} 16...
Rfd8 {[%clk 0:02:36.6]} 17. Qe3 {[%clk 0:02:55.8]} 17... Nf8 {[%clk 0:02:13.2]}
18. h5 {[%clk 0:02:55.8]} 18... h6 {[%clk 0:02:12.2]} 19. Ne5 {[%clk 0:02:41.5]}
19... Nd7 {[%clk 0:02:07.5]} 20. Nf3 {[%clk 0:02:01.6]} 20... a6 {[%clk
0:01:58.9]} 21. Rc1 {[%clk 0:01:43.3]} 21... b5 {[%clk 0:01:52.4]} 22. d5 {[%clk
0:01:37.6]} 22... exd5 {[%clk 0:01:36.5]} 23. exd5 {[%clk 0:01:39.5]} 23... Qd6
{[%clk 0:01:21.3]} 24. Nd4 {[%clk 0:01:36.9]} 24... Rxc1 {[%clk 0:01:07.9]} 25.
Rxc1 {[%clk 0:01:36.4]} 25... Nf6 {[%clk 0:00:53.2]} 26. Nf5 {[%clk 0:00:52]}
26... Qd7 {[%clk 0:00:39.8]} 27. Nxh6+ {[%clk 0:00:18.1]} 27... gxh6 {[%clk
0:00:40.9]} 28. Qxh6 {[%clk 0:00:20]} 28... Qf5 {[%clk 0:00:29.8]} 29. Rc3
{[%clk 0:00:16.4]} 29... Qxf2+ {[%clk 0:00:28.9]} 30. Kxf2 {[%clk 0:00:14.6]}
30... Ng4+ {[%clk 0:00:29.9]} 31. Kg3 {[%clk 0:00:13.7]} 31... Nxh6 {[%clk
0:00:31.5]} 32. Kf4 {[%clk 0:00:10.6]} 32... Rd7 {[%clk 0:00:19.3]} 33. Rd3
{[%clk 0:00:09.4]} 33... Kg7 {[%clk 0:00:18.4]} 34. g4 {[%clk 0:00:09.6]} 34...
f6 {[%clk 0:00:17.5]} 35. d6 {[%clk 0:00:06.2]} 35... Nf7 {[%clk 0:00:16.8]} 36.
Bxf7 {[%clk 0:00:04.8]} 36... Kxf7 {[%clk 0:00:18.2]} 37. Kf5 {[%clk 0:00:02.7]}
37... Bc8 {[%clk 0:00:18.5]} 38. Ke4 {[%clk 0:00:02.2]} 38... Ke6 {[%clk
0:00:15]} 39. Kf4 {[%clk 0:00:03.3]} 39... Bb7 {[%clk 0:00:09.7]} 40. h6 {[%clk
0:00:03.8]} 40... Bc8 {[%clk 0:00:03.7]} 41. Re3+ {[%clk 0:00:03.8]} 41... Kf7
{[%clk 0:00:04.3]} 42. Re7+ {[%clk 0:00:04.4]} 42... Rxe7 {[%clk 0:00:05.2]} 43.
dxe7 {[%clk 0:00:05.6]} 43... Bd7 {[%clk 0:00:06.3]} 44. g5 {[%clk 0:00:05.6]}
44... fxg5+ {[%clk 0:00:07.4]} 45. Kxg5 {[%clk 0:00:06.7]} 45... Kg8 {[%clk
0:00:08.9]} 46. Kf6 {[%clk 0:00:06.9]} 46... a5 {[%clk 0:00:08.3]} 47. Kg6
{[%clk 0:00:07.4]} 47... b4 {[%clk 0:00:09.4]} 48. h7+ {[%clk 0:00:08.4]} 48...
Kh8 {[%clk 0:00:10.7]} 49. Kf7 {[%clk 0:00:09.9]} 49... a4 {[%clk 0:00:11.9]}
50. e8=Q+ {[%clk 0:00:11.4]} 50... Bxe8+ {[%clk 0:00:13.3]} 51. Kxe8 {[%clk
0:00:13.1]} 51... b3 {[%clk 0:00:15.2]} 52. axb3 {[%clk 0:00:13.8]} 52... axb3
{[%clk 0:00:17.1]} 0-1